fUSD/lending_fUSD_20250305
["ID","MTS","AMOUNT","RATE_DAILY","PERIOD"]
[355440659,1741161033627,-506.24431005,0.00011792,2]
[355440660,1741161033636,-790.11,0.00011792,2]
[355440661,1741161033646,-500.0,0.00011792,2]
[355440662,1741161033656,-947.92,0.00011792,2]
[355440663,1741161033665,-500.0,0.00011792,2]
[355440664,1741161033675,-3133.09,0.00011792,2]
[355440665,1741161033684,-862.11,0.00011792,2]
[355440666,1741161033694,-872.07,0.00011792,2]
[355440667,1741161033704,-907.47,0.00011792,2]
[355440668,1741161033714,-510.7738053,0.00011792,2]
[355440669,1741161033724,-500.0,0.00011792,2]
[355440670,1741161033734,-1776.32,0.00011792,2]
[355440671,1741161033744,-507.93571693,0.00011792,2]
[355440672,1741161033753,-500.0,0.00011792,2]
[355440673,1741161033763,-511.29386244,0.00011792,2]
[355440674,1741161033772,-500.0,0.00011792,2]
[355440675,1741161033782,-2183.73,0.00011792,2]
[355440676,1741161033791,-5736.2,0.00011792,2]
[355440677,1741161033801,-501.32,0.00011792,2]
[355440678,1741161033811,-500.0,0.00011792,2]
[355440679,1741161033821,-500.0,0.00011792,2]
[355440680,1741161033830,-2897.48,0.00011792,2]
[355440681,1741161033840,-500.0,0.00011792,2]
[355440682,1741161033850,-500.0,0.00011792,2]
[355440683,1741161033860,-500.0,0.00011792,2]
[355440684,1741161033869,-500.0,0.00011792,2]
[355440685,1741161033879,-2032.63,0.00011792,2]
[355440686,1741161033888,-508.7934834,0.00011792,2]
[355440687,1741161033898,-663.27,0.00011792,2]
[355440688,1741161033908,-556.20492283,0.00011792,2]
[355440689,1741161033917,-500.0,0.00011792,2]
[355440690,1741161033927,-407.11943972,0.00011792,2]
[355440691,1741161033937,-1662.45,0.00011792,2]
[355440692,1741161033947,-668.59,0.00011792,2]
[355440693,1741161033957,-500.0,0.00011792,2]
[355440694,1741161033967,-500.0,0.00011792,2]
[355440695,1741161033976,-28622.26,0.00011792,2]
[355440696,1741161033986,-793.9,0.00011792,2]
[355440697,1741161033995,-500.0,0.00011792,2]
[355440698,1741161034006,-1133.16,0.00011792,2]
[355440699,1741161034016,-613.1,0.00011792,2]
[355440700,1741161034027,-500.0,0.00011792,2]
[355440701,1741161034036,-1899.08,0.00011792,2]
[355440702,1741161034046,-563.73,0.00011792,2]
[355440703,1741161034056,-1755.99,0.00011792,2]
[355440704,1741161034065,-1639.41,0.00011792,2]
[355440705,1741161034075,-705.8,0.00011792,2]
[355440706,1741161034085,-496.55561175,0.00011792,2]
[355440707,1741161034095,-721.7,0.00011792,2]
[355440708,1741161034105,-2601.24,0.00011792,2]
[355440709,1741161034115,-1339.99,0.00011792,2]
[355440710,1741161034125,-1274.42,0.00011792,2]
[355440711,1741161034134,-848.51,0.00011792,2]
[355440712,1741161034143,-500.0,0.00011792,2]
[355440713,1741161034152,-500.0,0.00011792,2]
[355440714,1741161034162,-730.2,0.00011792,2]
[355440715,1741161034172,-500.0,0.00011792,2]
[355440716,1741161034181,-915.38,0.00011792,2]
[355440717,1741161034191,-271.29170281,0.00011793,2]
[355440718,1741161034200,-1151.74,0.00011793,2]
[355440719,1741161034211,-717.26,0.00011793,2]
[355440720,1741161034223,-963.11,0.00011793,2]
[355440721,1741161034233,-500.0,0.00011793,2]
[355440722,1741161034243,-597.75,0.00011793,2]
[355440723,1741161034253,-1386.74,0.00011793,2]
[355440724,1741161034263,-918.26,0.00011793,2]
[355440725,1741161034273,-1477.11,0.00011793,2]
[355440726,1741161034283,-786.3,0.00011793,2]
[355440727,1741161034297,-716.82,0.00011793,2]
[355440728,1741161034308,-696.97,0.00011793,2]
[355440729,1741161034318,-671.46,0.00011793,2]
[355440730,1741161034328,-1198.64,0.00011793,2]
[355440731,1741161034338,-809.47,0.00011793,2]
[355440732,1741161034348,-500.0,0.00011793,2]
[355440733,1741161034357,-13.14940118,0.00011793,2]
[355440734,1741161034371,-641.26059882,0.00011793,2]
[355440735,1741161034381,-500.0,0.00011793,2]
[355440736,1741161034391,-44.30580089,0.00011793,2]
[355440737,1741161034402,-1050.80419911,0.00011793,2]
[355440738,1741161034412,-718.7,0.00011793,2]
[355440739,1741161034422,-500.0,0.00011793,2]
[355440740,1741161034432,-500.0,0.00011793,2]
[355440741,1741161034441,-930.76,0.00011793,2]
[355440742,1741161034451,-500.0,0.00011793,2]
[355440743,1741161034461,-985.79982426,0.00011793,2]
[355440744,1741161034491,-497.74017574,0.00011793,2]
[355440745,1741161034500,-500.0,0.00011793,2]
[355440746,1741161034510,-823.33,0.00011793,2]
[355440747,1741161034519,-500.0,0.00011793,2]
[355440748,1741161034529,-780.01,0.00011793,2]
[355440749,1741161034539,-500.0,0.00011793,2]
[355440750,1741161034549,-679.5,0.00011793,2]
[355440751,1741161034559,-1620.45,0.00011793,2]
[355440752,1741161034568,-500.0,0.00011793,2]
[355440753,1741161034578,-253.71318834,0.00011793,2]
[355440754,1741161034588,-500.0,0.00011793,2]
[355440755,1741161034599,-642.18,0.00011793,2]
[355440756,1741161034609,-838.6,0.00011793,2]
[355440757,1741161034619,-1413.53,0.00011793,2]
[355440758,1741161034629,-500.0,0.00011793,2]
[355440759,1741161034639,-1118.71,0.00011793,2]
[355440760,1741161034648,-500.0,0.00011793,2]
[355440761,1741161034658,-576.56,0.00011793,2]
[355440762,1741161034668,-1891.32,0.00011793,2]
[355440763,1741161034678,-732.03,0.00011793,2]
[355440764,1741161034687,-500.0,0.00011793,2]
[355440765,1741161034697,-749.33,0.00011793,2]
[355440766,1741161034706,-2271.28,0.00011793,2]
[355440767,1741161034716,-500.0,0.00011793,2]
[355440768,1741161034726,-1369.02,0.00011793,2]
[355440769,1741161034735,-500.0,0.00011793,2]
[355440770,1741161034744,-783.11,0.00011793,2]
[355440771,1741161034754,-734.19,0.00011793,2]
[355440772,1741161034763,-1095.7,0.00011793,2]
[355440773,1741161034773,-808.22,0.00011793,2]
[355440774,1741161034783,-565.7,0.00011793,2]
[355440775,1741161034792,-1989.75,0.00011793,2]
[355440776,1741161034802,-1381.39,0.00011793,2]
[355440777,1741161034812,-500.0,0.00011793,2]
[355440778,1741161034821,-500.0,0.00011793,2]
[355440779,1741161034831,-621.92516622,0.00011793,2]
[355440780,1741161034840,-868.26,0.00011793,2]
[355440781,1741161034850,-650.52,0.00011793,2]
[355440782,1741161034860,-685.46,0.00011793,2]
[355440783,1741161034869,-500.0,0.00011793,2]
[355440784,1741161034878,-8501.54,0.00011793,2]
[355440785,1741161034888,-1035.19,0.00011793,2]
[355440786,1741161034898,-2361.89,0.00011793,2]
[355440787,1741161034907,-1309.1,0.00011793,2]
[355440788,1741161034917,-804.96,0.00011793,2]
[355440789,1741161034926,-2161.71,0.00011793,2]
[355440790,1741161034936,-2313.58,0.00011793,2]
[355440791,1741161034945,-565.24,0.00011793,2]
[355440792,1741161034955,-2186.18,0.00011793,2]
[355440793,1741161034965,-708.16,0.00011793,2]
[355440794,1741161034975,-850.71,0.00011793,2]
[355440795,1741161034985,-3071.53,0.00011793,2]
[355440796,1741161034995,-2196.03,0.00011793,2]
[355440797,1741161035004,-1676.43,0.00011793,2]
[355440798,1741161035014,-1928.39,0.00011793,2]
[355440799,1741161035024,-1793.7,0.00011793,2]
[355440800,1741161035033,-500.0,0.00011793,2]
[355440801,1741161035043,-2897.47,0.00011793,2]
[355440802,1741161035053,-3140.65,0.00011793,2]
[355440803,1741161035062,-500.0,0.00011793,2]
[355440804,1741161035071,-1143.33,0.00011793,2]
[355440805,1741161035080,-2696.07,0.00011793,2]
[355440806,1741161035090,-500.0,0.00011793,2]
[355440807,1741161035100,-5088.73311472,0.00011793,2]
[355440808,1741161035112,-1782.98688528,0.00011793,2]
[355440809,1741161035122,-2349.5,0.00011793,2]
[355440810,1741161035132,-5041.07,0.00011793,2]
[355440811,1741161035141,-1746.01,0.00011793,2]
[355440812,1741161035151,-500.0,0.00011793,2]
[355440813,1741161035160,-9401.9,0.00011793,2]
[355440814,1741161035169,-1166.9,0.00011793,2]
[355440815,1741161035179,-1688.41,0.00011793,2]
[355440816,1741161035189,-1688.74,0.00011793,2]
[355440817,1741161035199,-742.17,0.00011793,2]
[355440818,1741161035211,-2446.37,0.00011793,2]
[355440819,1741161035223,-8188.2,0.00011793,2]
[355440820,1741161035233,-2983.91,0.00011793,2]
[355440821,1741161035242,-1569.42270093,0.00011793,2]
[355440822,1741161035280,-3016.70729907,0.00011793,2]
[355440823,1741161035290,-1145.73,0.00011793,2]
[355440824,1741161035300,-382.17254349,0.00011793,2]
[355440825,1741161035310,-2989.48,0.00011793,2]
[355440826,1741161035320,-2223.0383325,0.00011793,2]
[355440827,1741161035331,-3271.3416675,0.00011793,2]
[355440828,1741161035343,-1399.29,0.00011793,2]
[355440829,1741161035352,-9358.19,0.00011793,2]
[355440830,1741161035362,-1212.82,0.00011793,2]
[355440831,1741161035372,-500.0,0.00011793,2]
[355440832,1741161035382,-1451.96,0.00011793,2]
[355440833,1741161035391,-65.54233863,0.00011793,2]
[355440834,1741161035403,-2617.66474056,0.00011793,2]
[355440838,1741161038085,-260.58,0.00011793,2]
[355440839,1741161038164,-470.37292081,0.00011793,2]
[355440840,1741161038174,-4556.88,0.00011793,2]
[355440841,1741161038184,-2469.49910593,0.00011793,2]
[355440842,1741161038267,-106.01380108,0.00011793,2]
[355440843,1741161038279,-545.10709299,0.00011793,2]
[355440844,1741161038288,-1257.74,0.00011793,2]
[355440845,1741161038299,-3072.17,0.00011793,2]
[355440846,1741161038308,-846.65,0.00011793,2]
[355440847,1741161038318,-1857.65819567,0.00011793,2]
[355440848,1741161038333,-589.22609992,0.00011793,2]
[355440852,1741161040365,-500.0,0.00011792,2]
[355440853,1741161040376,-1878.00000003,0.00011792,2]
[355440854,1741161040389,-607.46602351,0.00011792,2]
[355440855,1741161040514,-3445.74720309,0.00011792,2]
[355440856,1741161040528,-2492.63677337,0.00011792,2]
[355440857,1741161040538,-731.95,0.00011792,2]
[355440858,1741161040547,-935.53570441,0.00011793,2]
[355440859,1741161040557,-583.58345911,0.00011793,2]
[355440860,1741161040566,-187.19782941,0.00011793,2]
[355440861,1741161040679,-52.30098803,0.00011793,2]
[355440862,1741161040689,-500.0,0.00011793,2]
[355440863,1741161040698,-447.69901197,0.00011793,2]
[355440864,1741161040729,-3687.0,0.00011793,2]
[355440894,1741161044702,-1363.70098803,0.00011793,2]
[355440895,1741161044710,-705.34,0.00011793,2]
[355440896,1741161044719,-848.49,0.00011793,2]
[355440897,1741161044727,-399.02193821,0.00011793,2]
[355440898,1741161044735,-130.9606219,0.00011793,2]
[355440899,1741161044774,-5189.4370075,0.00011793,2]
[355440900,1741161044798,-354.96343456,0.00011793,2]
[355440903,1741161046314,-500.0,0.00011792,2]
[355440904,1741161046324,-1207.04893604,0.00011793,2]
[355440905,1741161046334,-1010.11418856,0.00011793,2]
[355440906,1741161046346,-1703.31581144,0.00011793,2]
[355440907,1741161046357,-500.0,0.00011793,2]
[355440908,1741161046367,-5237.34,0.00011793,2]
[355440909,1741161046376,-1410.06904856,0.00011793,2]
[355440910,1741161046387,-1110.809591,0.00011793,2]
[355440911,1741161046399,-85.27136044,0.00011793,2]
[355440912,1741161046408,-2952.67,0.00011793,2]
[355440913,1741161046417,-10521.18,0.00011793,2]
[355440914,1741161046426,-13381.61,0.00011793,2]
[355440915,1741161046435,-8504.31,0.00011793,2]
[355440916,1741161046445,-1488.53,0.00011793,2]
[355440917,1741161046454,-2705.89,0.00011793,2]
[355440918,1741161046463,-1946.08,0.00011793,2]
[355440919,1741161046472,-500.0,0.00011794,2]
[355440921,1741161046482,-549.45,0.00011794,2]
[355440923,1741161046491,-500.0,0.00011794,2]
[355440924,1741161046501,-500.0,0.00011794,2]
[355440925,1741161046511,-500.0,0.00011794,2]
[355440926,1741161046521,-500.0,0.00011794,2]
[355440927,1741161046530,-500.0,0.00011794,2]
[355440928,1741161046539,-500.0,0.00011794,2]
[355440929,1741161046550,-500.0,0.00011794,2]
[355440930,1741161046560,-500.0,0.00011794,2]
[355440931,1741161046569,-500.0,0.00011794,2]
[355440932,1741161046579,-500.0,0.00011794,2]
[355440933,1741161046588,-500.0,0.00011794,2]
[355440934,1741161046599,-500.0,0.00011794,2]
[355440935,1741161046608,-880.06,0.00011794,2]
[355440936,1741161046618,-500.0,0.00011794,2]
[355440937,1741161046628,-500.0,0.00011794,2]
[355440938,1741161046637,-500.0,0.00011794,2]
[355440939,1741161046647,-500.0,0.00011794,2]
[355440940,1741161046656,-500.0,0.00011794,2]
[355440941,1741161046666,-820.61,0.00011794,2]
[355440942,1741161046675,-856.25,0.00011794,2]
[355440943,1741161046686,-919.05,0.00011794,2]
[355440944,1741161046697,-500.0,0.00011794,2]
[355440945,1741161046707,-500.0,0.00011794,2]
[355440946,1741161046716,-500.0,0.00011794,2]
[355440947,1741161046726,-500.0,0.00011794,2]
[355440949,1741161046736,-500.0,0.00011794,2]
[355440951,1741161046745,-500.0,0.00011794,2]
[355440953,1741161046754,-500.0,0.00011794,2]
[355440955,1741161046763,-500.0,0.00011794,2]
[355440956,1741161046773,-608.12,0.00011794,2]
[355440958,1741161046782,-500.0,0.00011794,2]
[355440960,1741161046791,-500.0,0.00011794,2]
[355440962,1741161046801,-500.0,0.00011794,2]
[355440964,1741161046811,-911.74,0.00011794,2]
[355440967,1741161046821,-500.0,0.00011794,2]
[355440969,1741161046830,-500.0,0.00011794,2]
[355440971,1741161046839,-828.61,0.00011794,2]
[355440973,1741161046849,-500.0,0.00011794,2]
[355440975,1741161046859,-500.0,0.00011794,2]
[355440976,1741161046868,-500.0,0.00011794,2]
[355440979,1741161046878,-500.0,0.00011794,2]
[355440980,1741161046888,-500.0,0.00011794,2]
[355440982,1741161046898,-500.0,0.00011794,2]
[355440984,1741161046908,-500.0,0.00011794,2]
[355440985,1741161046917,-987.24,0.00011794,2]
[355440986,1741161046927,-500.0,0.00011794,2]
[355440987,1741161046937,-1132.64,0.00011794,2]
[355440988,1741161046947,-927.12,0.00011794,2]
[355440989,1741161046956,-500.0,0.00011794,2]
[355440990,1741161046966,-500.0,0.00011794,2]
[355440991,1741161046975,-500.0,0.00011794,2]
[355440992,1741161046985,-736.66,0.00011794,2]
[355440993,1741161046996,-500.0,0.00011794,2]
[355440994,1741161047006,-674.94,0.00011794,2]
[355440995,1741161047015,-500.0,0.00011794,2]
[355440996,1741161047025,-1391.89,0.00011794,2]
[355440997,1741161047035,-1064.66,0.00011794,2]
[355440998,1741161047045,-500.0,0.00011794,2]
[355440999,1741161047055,-275.87862324,0.00011794,2]
[355441000,1741161047064,-500.0,0.00011794,2]
[355441001,1741161047075,-2262.11,0.00011794,2]
[355441002,1741161047084,-666.54,0.00011794,2]
[355441003,1741161047094,-500.0,0.00011794,2]
[355441004,1741161047105,-500.0,0.00011794,2]
[355441005,1741161047115,-1264.96,0.00011794,2]
[355441006,1741161047124,-1135.04,0.00011794,2]
[355441007,1741161047133,-500.0,0.00011794,2]
[355441008,1741161047143,-500.0,0.00011794,2]
[355441009,1741161047152,-512.23670865,0.00011794,2]
[355441010,1741161047161,-500.0,0.00011794,2]
[355441011,1741161047171,-2782.47,0.00011794,2]
[355441012,1741161047180,-500.0,0.00011794,2]
[355441013,1741161047190,-500.0,0.00011794,2]
[355441014,1741161047199,-500.0,0.00011794,2]
[355441015,1741161047211,-999.07,0.00011794,2]
[355441016,1741161047221,-500.0,0.00011794,2]
[355441017,1741161047231,-500.0,0.00011794,2]
[355441018,1741161047241,-500.0,0.00011794,2]
[355441019,1741161047251,-500.0,0.00011794,2]
[355441020,1741161047260,-881.27,0.00011794,2]
[355441021,1741161047270,-500.0,0.00011794,2]
[355441022,1741161047283,-774.83,0.00011794,2]
[355441023,1741161047294,-1885.73,0.00011794,2]
[355441024,1741161047306,-785.1,0.00011794,2]
[355441025,1741161047316,-500.0,0.00011794,2]
[355441026,1741161047326,-922.0,0.00011794,2]
[355441027,1741161047336,-500.0,0.00011794,2]
[355441028,1741161047346,-500.0,0.00011794,2]
[355441029,1741161047357,-660.86,0.00011794,2]
[355441030,1741161047367,-500.0,0.00011794,2]
[355441031,1741161047377,-500.0,0.00011794,2]
[355441032,1741161047387,-500.0,0.00011794,2]
[355441033,1741161047397,-723.12,0.00011794,2]
[355441034,1741161047407,-500.0,0.00011794,2]
[355441035,1741161047417,-1101.57,0.00011794,2]
[355441036,1741161047427,-500.0,0.00011794,2]
[355441037,1741161047436,-1529.22,0.00011794,2]
[355441038,1741161047446,-1247.25,0.00011794,2]
[355441039,1741161047456,-500.0,0.00011794,2]
[355441040,1741161047466,-500.0,0.00011794,2]
[355441041,1741161047476,-500.0,0.00011794,2]
[355441042,1741161047486,-1004.75,0.00011794,2]
[355441043,1741161047495,-500.0,0.00011794,2]
[355441044,1741161047505,-500.0,0.00011794,2]
[355441045,1741161047514,-500.0,0.00011794,2]
[355441046,1741161047524,-572.35,0.00011794,2]
[355441047,1741161047534,-500.0,0.00011794,2]
[355441048,1741161047543,-500.0,0.00011794,2]
[355441049,1741161047553,-500.0,0.00011794,2]
[355441050,1741161047563,-500.0,0.00011794,2]
[355441051,1741161047572,-1176.89,0.00011794,2]
[355441052,1741161047582,-1481.91,0.00011794,2]
[355441053,1741161047591,-500.0,0.00011794,2]
[355441054,1741161047602,-500.0,0.00011794,2]
[355441055,1741161047611,-500.0,0.00011794,2]
[355441056,1741161047622,-500.0,0.00011794,2]
[355441057,1741161047631,-500.0,0.00011794,2]
[355441058,1741161047641,-2064.83,0.00011794,2]
[355441059,1741161047650,-500.0,0.00011794,2]
[355441060,1741161047660,-2180.88,0.00011794,2]
[355441061,1741161047670,-500.0,0.00011794,2]
[355441062,1741161047679,-741.31,0.00011794,2]
[355441063,1741161047689,-500.0,0.00011794,2]
[355441064,1741161047699,-781.18,0.00011794,2]
[355441065,1741161047708,-2497.28,0.00011794,2]
[355441066,1741161047718,-500.0,0.00011794,2]
[355441067,1741161047728,-825.5,0.00011794,2]
[355441068,1741161047738,-500.0,0.00011794,2]
[355441069,1741161047747,-2661.08,0.00011794,2]
[355441070,1741161047757,-500.0,0.00011794,2]
[355441071,1741161047767,-500.0,0.00011794,2]
[355441072,1741161047777,-500.0,0.00011794,2]
[355441073,1741161047786,-500.0,0.00011794,2]
[355441074,1741161047796,-1299.24,0.00011794,2]
[355441075,1741161047806,-500.0,0.00011794,2]
[355441076,1741161047815,-500.0,0.00011794,2]
[355441077,1741161047825,-500.0,0.00011794,2]
[355441078,1741161047835,-500.0,0.00011794,2]
[355441079,1741161047844,-2005.5,0.00011794,2]
[355441080,1741161047854,-500.0,0.00011794,2]
[355441081,1741161047863,-1465.23,0.00011794,2]
[355441082,1741161047873,-500.0,0.00011794,2]
[355441083,1741161047883,-841.3,0.00011794,2]
[355441084,1741161047892,-500.0,0.00011794,2]
[355441085,1741161047903,-372.27433775,0.00011794,2]
[355441086,1741161047913,-1056.04,0.00011794,2]
[355441087,1741161047922,-500.0,0.00011794,2]
[355441088,1741161047932,-1546.07,0.00011794,2]
[355441089,1741161047941,-500.0,0.00011794,2]
[355441090,1741161047950,-500.0,0.00011794,2]
[355441091,1741161047960,-1019.17,0.00011794,2]
[355441092,1741161047969,-500.0,0.00011794,2]
[355441093,1741161047979,-500.0,0.00011794,2]
[355441094,1741161047989,-500.0,0.00011794,2]
[355441095,1741161047998,-500.0,0.00011794,2]
[355441096,1741161048008,-1505.11,0.00011794,2]
[355441097,1741161048018,-500.0,0.00011794,2]
[355441098,1741161048028,-500.0,0.00011794,2]
[355441099,1741161048037,-500.0,0.00011794,2]
[355441100,1741161048047,-500.0,0.00011794,2]
[355441101,1741161048057,-1157.71,0.00011794,2]
[355441102,1741161048067,-500.0,0.00011794,2]
[355441103,1741161048077,-1113.57,0.00011794,2]
[355441104,1741161048087,-500.0,0.00011794,2]
[355441105,1741161048097,-829.79,0.00011794,2]
[355441106,1741161048108,-846.32,0.00011794,2]
[355441107,1741161048118,-785.06,0.00011794,2]
[355441108,1741161048128,-500.0,0.00011794,2]
[355441109,1741161048138,-113.89579258,0.00011794,2]
[355441110,1741161048883,-386.10420742,0.00011794,2]
[355441111,1741161048893,-500.0,0.00011794,2]
[355441112,1741161048903,-841.34,0.00011794,2]
[355441113,1741161048912,-830.14,0.00011794,2]
[355441114,1741161048922,-1197.57,0.00011794,2]
[355441115,1741161048931,-500.0,0.00011794,2]
[355441116,1741161048942,-1376.46,0.00011794,2]
[355441117,1741161048951,-500.0,0.00011794,2]
[355441118,1741161048961,-500.0,0.00011794,2]
[355441119,1741161048971,-500.0,0.00011794,2]
[355441120,1741161048981,-500.0,0.00011794,2]
[355441121,1741161048991,-1019.45,0.00011794,2]
[355441122,1741161049002,-500.0,0.00011794,2]
[355441123,1741161049012,-500.0,0.00011794,2]
[355441124,1741161049023,-514.01119579,0.00011794,2]
[355441125,1741161049032,-1094.38,0.00011794,2]
[355441126,1741161049042,-500.0,0.00011794,2]
[355441127,1741161049052,-1617.64828311,0.00011794,2]
[355441128,1741161049088,-348.69171689,0.00011794,2]
[355441129,1741161049098,-500.0,0.00011794,2]
[355441130,1741161049109,-500.0,0.00011794,2]
[355441131,1741161049119,-500.0,0.00011794,2]
[355441132,1741161049128,-1329.54,0.00011794,2]
[355441133,1741161049138,-1210.91828311,0.00011794,2]
[355441134,1741161276628,-300.0,0.000111,14]
[355441135,1741161278167,-300.0,0.000111,14]
[355441136,1741161279162,-300.0,0.000111,14]
[355441137,1741161280338,-300.0,0.000111,14]
[355441138,1741161280849,-300.0,0.000111,14]
[355441139,1741161281753,-300.0,0.000111,14]
[355441140,1741161282669,-300.0,0.000111,14]
[355441141,1741161284192,-154.0,0.000111,14]
[355441142,1741161284213,-146.0,0.000111,14]
[355441143,1741161285082,-300.0,0.000111,14]
[355441144,1741161286187,-300.0,0.000111,14]
[355441145,1741161290017,-300.0,0.000111,14]
[355441146,1741161291502,-300.0,0.000111,14]
[355441147,1741161292375,-300.0,0.000111,14]
[355441148,1741161293299,-300.0,0.000111,14]
[355441149,1741161294332,-300.0,0.000111,14]
[355441150,1741161300218,-300.0,0.000111,14]
[355441151,1741161307205,-300.0,0.000111,14]
[355441152,1741161308076,-300.0,0.000111,14]
[355441153,1741161308735,-300.0,0.000111,14]
[355441154,1741161309678,-300.0,0.000111,14]
[355441155,1741161312688,-300.0,0.000111,14]
[355441156,1741161313616,-300.0,0.000111,14]
[355441157,1741161314738,-163.0,0.000111,14]
[355441158,1741161314761,-137.0,0.000111,14]
[355441159,1741161315601,-300.0,0.000111,14]
[355441160,1741161317065,-300.0,0.000111,14]
[355441163,1741161409772,-300.0,0.000111,14]
[355441164,1741161411077,-300.0,0.000111,14]
[355441165,1741161412055,-300.0,0.000111,14]
[355441166,1741161412980,-300.0,0.000111,14]
[355441167,1741161413992,-300.0,0.000111,14]
[355441168,1741161418143,-17.0,0.000111,14]
[355441169,1741161418166,-283.0,0.000111,14]
[355441170,1741161418876,-300.0,0.000111,14]
[355441171,1741161420046,-300.0,0.000111,14]
[355441172,1741161420717,-300.0,0.000111,14]
[355441173,1741161421459,-300.0,0.000111,14]
[355441174,1741161449513,544.78,8.873e-05,2]
[355441175,1741161594068,170.28,8.578e-05,2]
[355441182,1741162232347,-574.48039059,0.00010482,2]
[355441183,1741162232358,-334.64629941,0.00010551,2]
[355441184,1741162232370,-36.70370059,0.00010551,2]
[355441185,1741162232380,-300.0,0.00010582,2]
[355441186,1741162232393,-429.46381941,0.00010583,2]
[355441187,1741162232404,-814.25,0.00010583,2]
[355441188,1741162232423,-22656.28618059,0.00010583,2]
[355441189,1741162232432,-150.0,0.00010633,2]
[355441190,1741162232442,-165.31,0.00010659,2]
[355441191,1741162232451,-1000.0,0.00010688,2]
[355441192,1741162232461,-642.39,0.00010752,2]
[355441193,1741162232470,-200.0,0.00010769,2]
[355441194,1741162232479,-250.0,0.000108,2]
[355441195,1741162232487,-200.0,0.00010848,2]
[355441196,1741162232496,-164.64,0.00010872,2]
[355441197,1741162232504,-150.99,0.00010872,2]
[355441198,1741162232514,-567.76,0.00010959,2]
[355441199,1741162232523,-283.36,0.00010959,2]
[355441200,1741162232532,-1218.27,0.00010959,2]
[355441201,1741162232541,-150.0,0.00011063,2]
[355441202,1741162232549,-150.0,0.00011068,2]
[355441203,1741162232557,-162.0,0.000111,3]
[355441204,1741162232566,-150.0,0.00011135,2]
[355441205,1741162232575,-544.78,0.00011136,2]
[355441206,1741162232586,-9999.99,0.00011136,2]
[355441207,1741162232594,-150.0,0.00011222,2]
[355441208,1741162232602,-150.0,0.00011279,2]
[355441209,1741162232617,-310.69340196,0.00011395,2]
[355441210,1741162232627,-627.44580261,0.0001141,2]
[355441211,1741162232637,-1000.0,0.00011414,2]
[355441212,1741162232647,-150.0,0.00011443,2]
[355441213,1741162232659,-2500.0,0.000115,2]
[355441214,1741162232669,-150.0,0.000115,2]
[355441215,1741162232678,-500.0,0.00011561,2]
[355441216,1741162232691,-587.55,0.00011599,2]
[355441217,1741162232701,-745.38,0.00011599,2]
[355441218,1741162232711,-1571.1,0.00011599,2]
[355441219,1741162232721,-877.24,0.00011599,2]
[355441220,1741162232730,-1284.15,0.00011599,2]
[355441221,1741162232740,-197660.38606978,0.000116,2]
[355441222,1741162232750,-57759.89486052,0.000116,2]
[355441223,1741162232760,-433.48384815,0.00011614,2]